[Event "*** SCC Grand Prix: Titled Tuesday Blitz"]
[Site "Chess.com"]
[Date "2020.07.14"]
[Round "9"]
[White "FedaMaster"]
[Black "Mr_Sinigami"]
[Result "0-1"]
[WhiteElo "2382"]
[BlackElo "2579"]
[TimeControl "180+1"]
[EndTime "11:48:47 PDT"]
[Termination "Mr_Sinigami won by checkmate"]

1. e4 {[%clk 0:03:00.9]} 1... c5 {[%clk 0:02:58.5]} 2. d4 {[%clk 0:03:00.7]}
2... cxd4 {[%clk 0:02:58]} 3. c3 {[%clk 0:03:01.4]} 3... d3 {[%clk 0:02:58.4]}
4. Bxd3 {[%clk 0:03:00.3]} 4... Nc6 {[%clk 0:02:58.9]} 5. c4 {[%clk 0:03:00]}
5... d6 {[%clk 0:02:57.8]} 6. h3 {[%clk 0:02:59.4]} 6... g6 {[%clk 0:02:57.4]}
7. Nf3 {[%clk 0:02:59.5]} 7... Bg7 {[%clk 0:02:57.5]} 8. O-O {[%clk 0:03:00.4]}
8... Nf6 {[%clk 0:02:57.5]} 9. Nc3 {[%clk 0:03:01.2]} 9... O-O {[%clk
0:02:56.7]} 10. Be3 {[%clk 0:03:01.8]} 10... Nd7 {[%clk 0:02:55.2]} 11. Rc1
{[%clk 0:03:02]} 11... Nde5 {[%clk 0:02:48.4]} 12. b3 {[%clk 0:02:59.1]} 12...
Nxf3+ {[%clk 0:02:35.7]} 13. Qxf3 {[%clk 0:03:00]} 13... Qa5 {[%clk 0:02:33.7]}
14. Bd2 {[%clk 0:02:35.3]} 14... Be6 {[%clk 0:02:07.3]} 15. Qd1 {[%clk
0:02:21.3]} 15... a6 {[%clk 0:01:54.6]} 16. f4 {[%clk 0:02:07.8]} 16... Qd8
{[%clk 0:01:21.4]} 17. f5 {[%clk 0:01:56.6]} 17... Bd7 {[%clk 0:01:20.3]} 18.
Nd5 {[%clk 0:01:55.3]} 18... e6 {[%clk 0:01:14.5]} 19. f6 {[%clk 0:01:54.7]}
19... Bh8 {[%clk 0:01:12.8]} 20. Bg5 {[%clk 0:00:58.3]} 20... exd5 {[%clk
0:01:09.5]} 21. exd5 {[%clk 0:00:57.9]} 21... Ne5 {[%clk 0:01:08.4]} 22. Bb1
{[%clk 0:00:57.9]} 22... b5 {[%clk 0:01:03]} 23. Qd4 {[%clk 0:00:26.9]} 23...
Re8 {[%clk 0:01:00.9]} 24. c5 {[%clk 0:00:06.8]} 24... dxc5 {[%clk 0:01:00]} 25.
Qxc5 {[%clk 0:00:07.6]} 25... Rc8 {[%clk 0:00:51.6]} 26. Qd6 {[%clk 0:00:08.1]}
26... Rxc1 {[%clk 0:00:37.9]} 27. Rxc1 {[%clk 0:00:09]} 27... Bxh3 {[%clk
0:00:37.2]} 28. Qxd8 {[%clk 0:00:07.9]} 28... Rxd8 {[%clk 0:00:37.1]} 29. Re1
{[%clk 0:00:06.2]} 29... Rxd5 {[%clk 0:00:32.1]} 30. Bf4 {[%clk 0:00:05.4]}
30... Bxf6 {[%clk 0:00:31.3]} 31. Bxe5 {[%clk 0:00:05.7]} 31... Bxe5 {[%clk
0:00:30.6]} 32. gxh3 {[%clk 0:00:05.5]} 32... f6 {[%clk 0:00:30.2]} 33. Kg2
{[%clk 0:00:05.7]} 33... Rd2+ {[%clk 0:00:29.2]} 34. Kf3 {[%clk 0:00:05.5]}
34... Rb2 {[%clk 0:00:28.6]} 35. Ke4 {[%clk 0:00:05.1]} 35... Kg7 {[%clk
0:00:27.9]} 36. Kd5 {[%clk 0:00:04.8]} 36... Rh2 {[%clk 0:00:25.7]} 37. Kc6
{[%clk 0:00:05.4]} 37... Rxh3 {[%clk 0:00:25.2]} 38. Kb6 {[%clk 0:00:05.7]}
38... b4 {[%clk 0:00:25.4]} 39. Kxa6 {[%clk 0:00:05.5]} 39... h5 {[%clk
0:00:25]} 40. Be4 {[%clk 0:00:05.2]} 40... Rh4 {[%clk 0:00:23.4]} 41. Bd5 {[%clk
0:00:05.2]} 41... Rd4 {[%clk 0:00:22.4]} 42. Bc4 {[%clk 0:00:04.7]} 42... h4
{[%clk 0:00:22.6]} 43. Rg1 {[%clk 0:00:03.3]} 43... h3 {[%clk 0:00:21.8]} 44.
Kb5 {[%clk 0:00:04.2]} 44... h2 {[%clk 0:00:21.6]} 45. Rh1 {[%clk 0:00:04.7]}
45... Rg4 {[%clk 0:00:21]} 46. Kxb4 {[%clk 0:00:04.7]} 46... Rg1 {[%clk
0:00:16.3]} 47. Bd5 {[%clk 0:00:04.9]} 47... g5 {[%clk 0:00:16.5]} 48. a4 {[%clk
0:00:05.4]} 48... g4 {[%clk 0:00:16.7]} 49. a5 {[%clk 0:00:05.3]} 49... g3
{[%clk 0:00:16]} 50. a6 {[%clk 0:00:05.8]} 50... Bd4 {[%clk 0:00:16]} 51. Kc4
{[%clk 0:00:06.3]} 51... Ba7 {[%clk 0:00:15.2]} 52. b4 {[%clk 0:00:06.9]} 52...
g2 {[%clk 0:00:12.2]} 53. Bxg2 {[%clk 0:00:05.1]} 53... Rxg2 {[%clk 0:00:12.3]}
54. b5 {[%clk 0:00:05.6]} 54... Rb2 {[%clk 0:00:11.8]} 55. Kd5 {[%clk
0:00:04.9]} 55... Rxb5+ {[%clk 0:00:11.3]} 56. Kc6 {[%clk 0:00:05.6]} 56... Rb6+
{[%clk 0:00:11.3]} 57. Kc7 {[%clk 0:00:06.3]} 57... Rxa6 {[%clk 0:00:11.2]} 58.
Rxh2 {[%clk 0:00:07.2]} 58... Be3 {[%clk 0:00:11]} 59. Re2 {[%clk 0:00:06.1]}
59... Bg5 {[%clk 0:00:09.7]} 60. Kb7 {[%clk 0:00:07]} 60... Ra3 {[%clk
0:00:08.8]} 61. Kc6 {[%clk 0:00:07.9]} 61... Re3 {[%clk 0:00:09.2]} 62. Rf2
{[%clk 0:00:07.9]} 62... Re5 {[%clk 0:00:09.4]} 63. Kd6 {[%clk 0:00:07.8]} 63...
Kg6 {[%clk 0:00:09.9]} 64. Rb2 {[%clk 0:00:07.6]} 64... Re1 {[%clk 0:00:10.3]}
65. Rb8 {[%clk 0:00:08.5]} 65... Bf4+ {[%clk 0:00:09.9]} 66. Kd5 {[%clk
0:00:08.6]} 66... Bxb8 {[%clk 0:00:10.4]} 67. Kc6 {[%clk 0:00:09.5]} 67... Be5
{[%clk 0:00:10.5]} 68. Kd7 {[%clk 0:00:10.4]} 68... Bf4 {[%clk 0:00:10.1]} 69.
Kc8 {[%clk 0:00:11.3]} 69... Bg5 {[%clk 0:00:10.5]} 70. Kd7 {[%clk 0:00:12.2]}
70... f5 {[%clk 0:00:11.1]} 71. Kd6 {[%clk 0:00:13.1]} 71... f4 {[%clk
0:00:11.8]} 72. Kd5 {[%clk 0:00:14]} 72... f3 {[%clk 0:00:12.4]} 73. Kd4 {[%clk
0:00:14.9]} 73... f2 {[%clk 0:00:13]} 74. Kd3 {[%clk 0:00:15.8]} 74... f1=Q+
{[%clk 0:00:13.5]} 75. Kd4 {[%clk 0:00:15.7]} 75... Qf4+ {[%clk 0:00:13.4]} 76.
Kc5 {[%clk 0:00:16.6]} 76... Qe5+ {[%clk 0:00:13.4]} 77. Kb6 {[%clk 0:00:17.5]}
77... Qd6+ {[%clk 0:00:13.3]} 78. Kb7 {[%clk 0:00:17.8]} 78... Rb1+ {[%clk
0:00:12.6]} 79. Kc8 {[%clk 0:00:18.7]} 79... Rb8# {[%clk 0:00:11.2]} 0-1

[Event "*** SCC Grand Prix: Titled Tuesday Blitz"]
[Site "Chess.com"]
[Date "2020.07.14"]
[Round "9"]
[White "JuliaEfremova"]
[Black "profofchess"]
[Result "0-1"]
[WhiteElo "2309"]
[BlackElo "2465"]
[TimeControl "180+1"]
[EndTime "11:48:47 PDT"]
[Termination "profofchess won on time"]

1. d4 {[%clk 0:03:00.9]} 1... Nf6 {[%clk 0:02:59.7]} 2. Bf4 {[%clk 0:02:58.7]}
2... c5 {[%clk 0:02:59.1]} 3. e3 {[%clk 0:02:58.3]} 3... Nd5 {[%clk 0:02:55.8]}
4. Bg3 {[%clk 0:02:54.8]} 4... Qb6 {[%clk 0:02:55]} 5. b3 {[%clk 0:02:40.8]}
5... cxd4 {[%clk 0:02:53.3]} 6. Qxd4 {[%clk 0:02:39.3]} 6... Qxd4 {[%clk
0:02:50.3]} 7. exd4 {[%clk 0:02:40.2]} 7... Nb4 {[%clk 0:02:38.7]} 8. Na3 {[%clk
0:02:38.4]} 8... e6 {[%clk 0:02:38]} 9. Kd1 {[%clk 0:02:18.5]} 9... d6 {[%clk
0:02:10.7]} 10. c3 {[%clk 0:02:14.9]} 10... Nd5 {[%clk 0:02:08.3]} 11. Kc2
{[%clk 0:01:59.9]} 11... Be7 {[%clk 0:01:56.1]} 12. Bd3 {[%clk 0:01:52.5]} 12...
O-O {[%clk 0:01:54.8]} 13. Nc4 {[%clk 0:01:49.9]} 13... Rd8 {[%clk 0:01:52.4]}
14. Ne3 {[%clk 0:01:48.8]} 14... Nf6 {[%clk 0:01:46.4]} 15. Nf3 {[%clk 0:01:46]}
15... Nc6 {[%clk 0:01:45.6]} 16. Kb2 {[%clk 0:01:43.4]} 16... b6 {[%clk
0:01:41.6]} 17. h4 {[%clk 0:01:39.8]} 17... Bb7 {[%clk 0:01:40.3]} 18. h5 {[%clk
0:01:39.6]} 18... h6 {[%clk 0:01:40.6]} 19. Rae1 {[%clk 0:01:34.4]} 19... a6
{[%clk 0:01:27.5]} 20. Bh4 {[%clk 0:01:22.9]} 20... Rac8 {[%clk 0:00:52.2]} 21.
Rh3 {[%clk 0:01:21.6]} 21... Nh7 {[%clk 0:00:19.5]} 22. Bxe7 {[%clk 0:01:19.7]}
22... Nxe7 {[%clk 0:00:19.4]} 23. g4 {[%clk 0:01:20]} 23... Nd5 {[%clk
0:00:15.5]} 24. Nxd5 {[%clk 0:01:15.2]} 24... exd5 {[%clk 0:00:13.7]} 25. Rg3
{[%clk 0:01:10.3]} 25... Re8 {[%clk 0:00:13.2]} 26. Reg1 {[%clk 0:01:06.1]}
26... f6 {[%clk 0:00:12.8]} 27. Bxh7+ {[%clk 0:01:01]} 27... Kxh7 {[%clk
0:00:12.8]} 28. Nh4 {[%clk 0:00:53.8]} 28... Rcd8 {[%clk 0:00:12.4]} 29. f4
{[%clk 0:00:52.3]} 29... Re2+ {[%clk 0:00:12.3]} 30. Ka3 {[%clk 0:00:51.2]}
30... Bc8 {[%clk 0:00:12.4]} 31. g5 {[%clk 0:00:49.8]} 31... fxg5 {[%clk
0:00:12.4]} 32. fxg5 {[%clk 0:00:49.6]} 32... hxg5 {[%clk 0:00:10.2]} 33. Rxg5
{[%clk 0:00:48.4]} 33... Rd7 {[%clk 0:00:09.7]} 34. Ng6 {[%clk 0:00:47.1]} 34...
Rf7 {[%clk 0:00:08.7]} 35. R1g2 {[%clk 0:00:37.2]} 35... Rff2 {[%clk 0:00:07.6]}
36. Rxf2 {[%clk 0:00:34.3]} 36... Rxf2 {[%clk 0:00:08.5]} 37. Ne7 {[%clk
0:00:32.8]} 37... Be6 {[%clk 0:00:06.8]} 38. Nxd5 {[%clk 0:00:24.6]} 38... Rh2
{[%clk 0:00:06.6]} 39. Nf4 {[%clk 0:00:23.7]} 39... Bf7 {[%clk 0:00:06.5]} 40.
Ng6 {[%clk 0:00:22.8]} 40... Kh6 {[%clk 0:00:06.2]} 41. Rf5 {[%clk 0:00:16.5]}
41... Bxg6 {[%clk 0:00:05.1]} 42. hxg6 {[%clk 0:00:15.2]} 42... Kxg6 {[%clk
0:00:06]} 43. Rd5 {[%clk 0:00:15.7]} 43... Kf7 {[%clk 0:00:04]} 44. Rxd6 {[%clk
0:00:16.6]} 44... g5 {[%clk 0:00:04.2]} 45. Rxb6 {[%clk 0:00:16.5]} 45... g4
{[%clk 0:00:04.7]} 46. Rb7+ {[%clk 0:00:11.1]} 46... Kf6 {[%clk 0:00:04.6]} 47.
Rb6+ {[%clk 0:00:11.3]} 47... Kf7 {[%clk 0:00:04.5]} 48. Rb7+ {[%clk 0:00:11.6]}
48... Kf6 {[%clk 0:00:04.9]} 49. Rb8 {[%clk 0:00:11.6]} 49... Kf7 {[%clk
0:00:04.9]} 50. Rd8 {[%clk 0:00:09.9]} 50... g3 {[%clk 0:00:04.8]} 51. Rd7+
{[%clk 0:00:09]} 51... Kf6 {[%clk 0:00:04.6]} 52. Rd6+ {[%clk 0:00:08.9]} 52...
Kf5 {[%clk 0:00:04.5]} 53. Rd8 {[%clk 0:00:07.8]} 53... Rh4 {[%clk 0:00:04.5]}
54. Rf8+ {[%clk 0:00:07.5]} 54... Ke4 {[%clk 0:00:03]} 55. Rf1 {[%clk
0:00:08.4]} 55... Rg4 {[%clk 0:00:02.5]} 56. Rg1 {[%clk 0:00:08.7]} 56... Kf3
{[%clk 0:00:02.4]} 57. d5 {[%clk 0:00:08]} 57... Kf2 {[%clk 0:00:02.8]} 58. Rxg3
{[%clk 0:00:07.6]} 58... Kxg3 {[%clk 0:00:02.9]} 59. c4 {[%clk 0:00:08.5]} 59...
Kf4 {[%clk 0:00:03.1]} 60. Kb4 {[%clk 0:00:08.9]} 60... Ke5 {[%clk 0:00:03.4]}
61. Kc5 {[%clk 0:00:08.9]} 61... Rg6 {[%clk 0:00:03.3]} 62. a4 {[%clk
0:00:08.9]} 62... Ke4 {[%clk 0:00:03.1]} 63. b4 {[%clk 0:00:09.1]} 63... Ke5
{[%clk 0:00:03.3]} 64. b5 {[%clk 0:00:09.4]} 64... a5 {[%clk 0:00:03.3]} 65. b6
{[%clk 0:00:08.6]} 65... Rg8 {[%clk 0:00:03.3]} 66. Kb5 {[%clk 0:00:06.8]} 66...
Rc8 {[%clk 0:00:03.2]} 67. b7 {[%clk 0:00:06]} 67... Rb8 {[%clk 0:00:03.4]} 68.
Kc6 {[%clk 0:00:06.2]} 68... Kd4 {[%clk 0:00:03.6]} 69. Kc7 {[%clk 0:00:04.3]}
69... Rg8 {[%clk 0:00:03.6]} 70. d6 {[%clk 0:00:03.3]} 70... Kxc4 {[%clk
0:00:03.6]} 71. d7 {[%clk 0:00:03.4]} 71... Kc5 {[%clk 0:00:03.7]} 72. b8=Q
{[%clk 0:00:02.5]} 72... Rg7 {[%clk 0:00:03.7]} 0-1

[Event "*** SCC Grand Prix: Titled Tuesday Blitz"]
[Site "Chess.com"]
[Date "2020.07.14"]
[Round "9"]
[White "GMKrikor"]
[Black "RodinMihail"]
[Result "1-0"]
[WhiteElo "2691"]
[BlackElo "2477"]
[TimeControl "180+1"]
[EndTime "11:48:48 PDT"]
[Termination "GMKrikor won by checkmate"]

1. e4 {[%clk 0:03:00.9]} 1... e5 {[%clk 0:02:57.6]} 2. Bc4 {[%clk 0:03:00.3]}
2... Nc6 {[%clk 0:02:57.4]} 3. Nc3 {[%clk 0:03:00]} 3... Nf6 {[%clk 0:02:57.6]}
4. d3 {[%clk 0:02:59.9]} 4... Bc5 {[%clk 0:02:58.2]} 5. f4 {[%clk 0:02:59.3]}
5... d6 {[%clk 0:02:57.9]} 6. Nf3 {[%clk 0:02:58.9]} 6... Na5 {[%clk 0:02:58.1]}
7. fxe5 {[%clk 0:02:48.1]} 7... dxe5 {[%clk 0:02:59]} 8. Bb3 {[%clk 0:02:41]}
8... O-O {[%clk 0:02:55]} 9. Qe2 {[%clk 0:02:32.8]} 9... Nxb3 {[%clk 0:02:53.3]}
10. axb3 {[%clk 0:02:32.2]} 10... c6 {[%clk 0:02:45.3]} 11. Nxe5 {[%clk
0:01:46.2]} 11... Re8 {[%clk 0:02:45.4]} 12. Nf3 {[%clk 0:01:46.3]} 12... Nd5
{[%clk 0:02:26.4]} 13. Bd2 {[%clk 0:01:31]} 13... Nb4 {[%clk 0:02:23.6]} 14.
O-O-O {[%clk 0:01:18.7]} 14... Qa5 {[%clk 0:02:20.8]} 15. Kb1 {[%clk 0:01:06]}
15... Be6 {[%clk 0:02:08.6]} 16. d4 {[%clk 0:00:51.8]} 16... Be7 {[%clk
0:01:57.7]} 17. Rhe1 {[%clk 0:00:51]} 17... Rad8 {[%clk 0:01:51.1]} 18. Bf4
{[%clk 0:00:43.3]} 18... b5 {[%clk 0:01:41.8]} 19. h3 {[%clk 0:00:36.3]} 19...
f6 {[%clk 0:01:37.2]} 20. g4 {[%clk 0:00:35.5]} 20... Qb6 {[%clk 0:01:25.9]} 21.
Qh2 {[%clk 0:00:29]} 21... Rd7 {[%clk 0:01:18.5]} 22. g5 {[%clk 0:00:26.1]}
22... a5 {[%clk 0:01:14.8]} 23. gxf6 {[%clk 0:00:25.9]} 23... Bxf6 {[%clk
0:01:15.4]} 24. Be5 {[%clk 0:00:22.2]} 24... Be7 {[%clk 0:01:13.3]} 25. Rg1
{[%clk 0:00:21.3]} 25... Bf8 {[%clk 0:01:12.3]} 26. Ng5 {[%clk 0:00:21.6]} 26...
a4 {[%clk 0:01:09.5]} 27. Nxe6 {[%clk 0:00:20.1]} 27... Rxe6 {[%clk 0:01:10.4]}
28. Rdf1 {[%clk 0:00:15.3]} 28... axb3 {[%clk 0:01:05.4]} 29. cxb3 {[%clk
0:00:16.2]} 29... g6 {[%clk 0:01:01.6]} 30. Qf4 {[%clk 0:00:16.1]} 30... Qd8
{[%clk 0:00:56.5]} 31. Qf5 {[%clk 0:00:14.9]} 31... Qe7 {[%clk 0:00:30.9]} 32.
Qf3 {[%clk 0:00:15.1]} 32... Qe8 {[%clk 0:00:30.1]} 33. h4 {[%clk 0:00:15.2]}
33... Rf7 {[%clk 0:00:23.8]} 34. Qxf7+ {[%clk 0:00:15]} 34... Qxf7 {[%clk
0:00:24.7]} 35. Rxf7 {[%clk 0:00:15.4]} 35... Kxf7 {[%clk 0:00:25.6]} 36. Ne2
{[%clk 0:00:13.3]} 36... Nd3 {[%clk 0:00:24.9]} 37. Rf1+ {[%clk 0:00:09.7]}
37... Kg8 {[%clk 0:00:22.7]} 38. Nf4 {[%clk 0:00:07.3]} 38... Nxf4 {[%clk
0:00:20.8]} 39. Rxf4 {[%clk 0:00:08.2]} 39... c5 {[%clk 0:00:21.3]} 40. Kc2
{[%clk 0:00:06.8]} 40... Be7 {[%clk 0:00:20.2]} 41. Kd3 {[%clk 0:00:05.7]} 41...
cxd4 {[%clk 0:00:20.1]} 42. Bxd4 {[%clk 0:00:06.6]} 42... Ra6 {[%clk 0:00:19.3]}
43. e5 {[%clk 0:00:06.5]} 43... Re6 {[%clk 0:00:18.6]} 44. Ke4 {[%clk
0:00:06.8]} 44... Rc6 {[%clk 0:00:18.9]} 45. Kd5 {[%clk 0:00:07]} 45... Rc8
{[%clk 0:00:19.6]} 46. Ke6 {[%clk 0:00:04.5]} 46... Bf8 {[%clk 0:00:19.8]} 47.
Kd5 {[%clk 0:00:04.6]} 47... Rd8+ {[%clk 0:00:19.9]} 48. Ke4 {[%clk 0:00:05.2]}
48... Re8 {[%clk 0:00:20.1]} 49. Rf6 {[%clk 0:00:04.4]} 49... Be7 {[%clk
0:00:18.7]} 50. Re6 {[%clk 0:00:04.8]} 50... Kf7 {[%clk 0:00:18.8]} 51. Rb6
{[%clk 0:00:05.1]} 51... Bxh4 {[%clk 0:00:19]} 52. Rxb5 {[%clk 0:00:05.1]} 52...
g5 {[%clk 0:00:19.4]} 53. Kf5 {[%clk 0:00:04.8]} 53... Rg8 {[%clk 0:00:17.3]}
54. Rb7+ {[%clk 0:00:04.9]} 54... Ke8 {[%clk 0:00:17.4]} 55. e6 {[%clk
0:00:03.8]} 55... Rf8+ {[%clk 0:00:16.9]} 56. Bf6 {[%clk 0:00:04.4]} 56... Rxf6+
{[%clk 0:00:16.1]} 57. Kxf6 {[%clk 0:00:05.3]} 57... g4+ {[%clk 0:00:16.5]} 58.
Kf5 {[%clk 0:00:04.9]} 58... g3 {[%clk 0:00:16.8]} 59. Rxh7 {[%clk 0:00:05.3]}
59... g2 {[%clk 0:00:16.8]} 60. Rg7 {[%clk 0:00:05.5]} 60... Kf8 {[%clk
0:00:16]} 61. Rxg2 {[%clk 0:00:05.5]} 61... Ke7 {[%clk 0:00:16.9]} 62. Re2
{[%clk 0:00:06.3]} 62... Bf2 {[%clk 0:00:15.9]} 63. Re4 {[%clk 0:00:07.2]} 63...
Bc5 {[%clk 0:00:14.8]} 64. Rc4 {[%clk 0:00:08.1]} 64... Bd6 {[%clk 0:00:15]} 65.
b4 {[%clk 0:00:08.8]} 65... Kd8 {[%clk 0:00:14.8]} 66. b5 {[%clk 0:00:09.4]}
66... Ke7 {[%clk 0:00:15.3]} 67. Rc6 {[%clk 0:00:10.3]} 67... Bb8 {[%clk
0:00:15.9]} 68. b6 {[%clk 0:00:10.2]} 68... Bg3 {[%clk 0:00:15.8]} 69. Rc4
{[%clk 0:00:10.7]} 69... Kd6 {[%clk 0:00:16]} 70. b7 {[%clk 0:00:11]} 70... Ke7
{[%clk 0:00:15.7]} 71. Rc8 {[%clk 0:00:11.1]} 71... Bh2 {[%clk 0:00:16.6]} 72.
b8=Q {[%clk 0:00:09.6]} 72... Bxb8 {[%clk 0:00:17.5]} 73. Rxb8 {[%clk
0:00:09.4]} 73... Kd6 {[%clk 0:00:18.4]} 74. Re8 {[%clk 0:00:09.5]} 74... Kc7
{[%clk 0:00:19.3]} 75. Kf6 {[%clk 0:00:09.8]} 75... Kd6 {[%clk 0:00:19.7]} 76.
Rd8+ {[%clk 0:00:10.3]} 76... Kc5 {[%clk 0:00:20.6]} 77. e7 {[%clk 0:00:11.2]}
77... Kb4 {[%clk 0:00:21.5]} 78. Ke6 {[%clk 0:00:11.6]} 78... Kb3 {[%clk
0:00:22.4]} 79. Rb8+ {[%clk 0:00:11.5]} 79... Ka2 {[%clk 0:00:23.3]} 80. b4
{[%clk 0:00:12]} 80... Kb1 {[%clk 0:00:24.2]} 81. b5 {[%clk 0:00:12.9]} 81...
Kc2 {[%clk 0:00:25.1]} 82. b6 {[%clk 0:00:13.6]} 82... Kc3 {[%clk 0:00:26]} 83.
Rc8+ {[%clk 0:00:14.2]} 83... Kb4 {[%clk 0:00:25.9]} 84. b7 {[%clk 0:00:14.7]}
84... Ka5 {[%clk 0:00:26.7]} 85. b8=Q {[%clk 0:00:15]} 85... Ka6 {[%clk
0:00:27.6]} 86. Rc7 {[%clk 0:00:14.7]} 86... Ka5 {[%clk 0:00:27.6]} 87. Ra7#
{[%clk 0:00:15.6]} 1-0

[Event "*** SCC Grand Prix: Titled Tuesday Blitz"]
[Site "Chess.com"]
[Date "2020.07.14"]
[Round "9"]
[White "exoticprincess"]
[Black "wonderfultime"]
[Result "1/2-1/2"]
[WhiteElo "2831"]
[BlackElo "2968"]
[TimeControl "180+1"]
[EndTime "11:48:54 PDT"]
[Termination "Game drawn by repetition"]

1. d4 {[%clk 0:02:45.7]} 1... d5 {[%clk 0:02:59.8]} 2. c4 {[%clk 0:02:45.5]}
2... c6 {[%clk 0:03:00]} 3. Nf3 {[%clk 0:02:42.8]} 3... Nf6 {[%clk 0:03:00.5]}
4. cxd5 {[%clk 0:02:41.3]} 4... cxd5 {[%clk 0:03:00.7]} 5. Nc3 {[%clk
0:02:42.2]} 5... Nc6 {[%clk 0:03:00.6]} 6. Bf4 {[%clk 0:02:42.2]} 6... a6 {[%clk
0:02:57.4]} 7. Ne5 {[%clk 0:02:42]} 7... e6 {[%clk 0:02:50.4]} 8. e3 {[%clk
0:02:41.9]} 8... Nxe5 {[%clk 0:02:49.5]} 9. Bxe5 {[%clk 0:02:41]} 9... Bd6
{[%clk 0:02:49.3]} 10. Bd3 {[%clk 0:02:41]} 10... O-O {[%clk 0:02:43.1]} 11. O-O
{[%clk 0:02:40.7]} 11... b5 {[%clk 0:02:31.6]} 12. Rc1 {[%clk 0:02:39.7]} 12...
Bb7 {[%clk 0:02:31.9]} 13. f4 {[%clk 0:02:35.9]} 13... Rc8 {[%clk 0:02:24.8]}
14. Qf3 {[%clk 0:02:29.5]} 14... b4 {[%clk 0:02:23.3]} 15. Ne2 {[%clk
0:02:27.9]} 15... Ne4 {[%clk 0:02:23.6]} 16. Rxc8 {[%clk 0:02:23.5]} 16... Qxc8
{[%clk 0:02:12.9]} 17. Bxe4 {[%clk 0:02:14.2]} 17... dxe4 {[%clk 0:02:13.8]} 18.
Qg3 {[%clk 0:02:14.4]} 18... Bxe5 {[%clk 0:02:12.9]} 19. fxe5 {[%clk 0:02:15.3]}
19... Bd5 {[%clk 0:01:44.5]} 20. Nf4 {[%clk 0:02:14.5]} 20... f5 {[%clk
0:01:44.8]} 21. exf6 {[%clk 0:01:53.5]} 21... Rxf6 {[%clk 0:01:44.3]} 22. a3
{[%clk 0:01:48.3]} 22... b3 {[%clk 0:01:39]} 23. h3 {[%clk 0:01:45.3]} 23... Qc7
{[%clk 0:01:30.5]} 24. Kh2 {[%clk 0:01:42.4]} 24... h6 {[%clk 0:01:29.6]} 25. h4
{[%clk 0:01:37.4]} 25... Rf5 {[%clk 0:01:12.5]} 26. Rf2 {[%clk 0:01:31.9]} 26...
Qf7 {[%clk 0:01:07.4]} 27. Nh3 {[%clk 0:01:27.3]} 27... Kh7 {[%clk 0:00:58.5]}
28. Rxf5 {[%clk 0:01:23.8]} 28... Qxf5 {[%clk 0:00:58.7]} 29. Nf4 {[%clk
0:01:20.1]} 29... a5 {[%clk 0:00:58.7]} 30. Qh3 {[%clk 0:01:15.2]} 30... Qf6
{[%clk 0:00:55.9]} 31. h5 {[%clk 0:01:11.6]} 31... Bc4 {[%clk 0:00:45.7]} 32.
Qg4 {[%clk 0:01:09.9]} 32... Kg8 {[%clk 0:00:46.1]} 33. Kg3 {[%clk 0:01:08.4]}
33... a4 {[%clk 0:00:44.3]} 34. Qg6 {[%clk 0:01:06.8]} 34... Qe7 {[%clk
0:00:42.9]} 35. Qxe4 {[%clk 0:01:06]} 35... Qg5+ {[%clk 0:00:43.2]} 36. Kh3
{[%clk 0:01:03.1]} 36... Qd8 {[%clk 0:00:27.8]} 37. Qe5 {[%clk 0:00:58.9]} 37...
Qe7 {[%clk 0:00:16.8]} 38. Kg3 {[%clk 0:00:58]} 38... Qe8 {[%clk 0:00:14.7]} 39.
d5 {[%clk 0:00:55.9]} 39... Qd8 {[%clk 0:00:11]} 40. Qxe6+ {[%clk 0:00:55.7]}
40... Kh8 {[%clk 0:00:10]} 41. Qe5 {[%clk 0:00:54]} 41... Bb5 {[%clk 0:00:06.4]}
42. Qxg7+ {[%clk 0:00:54]} 42... Kxg7 {[%clk 0:00:06.7]} 43. Ne6+ {[%clk
0:00:54.9]} 43... Kf6 {[%clk 0:00:07.6]} 44. Nxd8 {[%clk 0:00:55.7]} 44... Ke5
{[%clk 0:00:06.8]} 45. Nf7+ {[%clk 0:00:54.3]} 45... Kxd5 {[%clk 0:00:07.1]} 46.
Nxh6 {[%clk 0:00:54.7]} 46... Ke4 {[%clk 0:00:08]} 47. Nf7 {[%clk 0:00:46.9]}
47... Kxe3 {[%clk 0:00:08.2]} 48. Ne5 {[%clk 0:00:44.2]} 48... Bd3 {[%clk
0:00:03.4]} 49. Nxd3 {[%clk 0:00:43.4]} 49... Kxd3 {[%clk 0:00:04.3]} 50. h6
{[%clk 0:00:44.2]} 50... Kc2 {[%clk 0:00:05.2]} 51. h7 {[%clk 0:00:44.9]} 51...
Kxb2 {[%clk 0:00:06.1]} 52. h8=Q+ {[%clk 0:00:45]} 52... Ka2 {[%clk 0:00:06.8]}
53. Qg8 {[%clk 0:00:35]} 53... Kxa3 {[%clk 0:00:06.5]} 54. Kf2 {[%clk 0:00:34]}
54... b2 {[%clk 0:00:02.9]} 55. Qg6 {[%clk 0:00:33]} 55... Ka2 {[%clk 0:00:03]}
56. Qc2 {[%clk 0:00:26.2]} 56... a3 {[%clk 0:00:03.1]} 57. Ke2 {[%clk
0:00:20.6]} 57... Ka1 {[%clk 0:00:03.3]} 58. Qc3 {[%clk 0:00:20.5]} 58... Ka2
{[%clk 0:00:03.3]} 59. Qc4+ {[%clk 0:00:20.2]} 59... Ka1 {[%clk 0:00:03.7]} 60.
Qb3 {[%clk 0:00:18.9]} 60... a2 {[%clk 0:00:02.1]} 61. Qc3 {[%clk 0:00:19.3]}
61... Kb1 {[%clk 0:00:02.1]} 62. Qe1+ {[%clk 0:00:19]} 62... Kc2 {[%clk
0:00:02.5]} 63. Qd1+ {[%clk 0:00:19.6]} 63... Kc3 {[%clk 0:00:03]} 64. Qd3+
{[%clk 0:00:19.8]} 64... Kb4 {[%clk 0:00:03.4]} 65. Qd4+ {[%clk 0:00:19.8]}
65... Kb3 {[%clk 0:00:03.8]} 66. Qd5+ {[%clk 0:00:20.1]} 66... Ka3 {[%clk
0:00:03.4]} 67. Qa5+ {[%clk 0:00:16]} 67... Kb3 {[%clk 0:00:03.8]} 68. Qb5+
{[%clk 0:00:16.5]} 68... Ka3 {[%clk 0:00:04.2]} 69. Qd3+ {[%clk 0:00:15.7]}
69... Kb4 {[%clk 0:00:04.1]} 70. Qd4+ {[%clk 0:00:09.4]} 70... Kb3 {[%clk
0:00:04.6]} 71. Qd5+ {[%clk 0:00:09.9]} 71... Ka3 {[%clk 0:00:04.9]} 72. Qc5+
{[%clk 0:00:08.8]} 72... Kb3 {[%clk 0:00:05.3]} 73. Qb5+ {[%clk 0:00:08.8]}
73... Ka3 {[%clk 0:00:05.8]} 74. Qd3+ {[%clk 0:00:07.7]} 74... Kb4 {[%clk
0:00:06]} 1/2-1/2